fUST/lending_fUST_20260423
["ID","MTS","AMOUNT","RATE_DAILY","PERIOD"]
[421013728,1776927048375,-10342.34652909,0.00022014,2]
[421013729,1776927048386,-453.0,0.00022014,2]
[421013730,1776927048398,-15177.04182989,0.00022014,2]
[421013739,1776927124115,2000.0,0.00024658,120]
[421013765,1776927643109,-1899.44776836,0.0001,2]
[421013767,1776927708907,-1899.44776836,9.899e-05,2]
[421013768,1776927708928,-300.0,9.999e-05,2]
[421013769,1776927708950,-7800.55223164,0.0001,2]
[421013770,1776927711900,-10000.0,0.0001,2]
[421013771,1776927714354,-10000.0,0.0001,2]
[421013772,1776927719380,-10000.0,0.0001,2]
[421013773,1776927720835,-10000.0,0.0001,2]
[421013774,1776927722182,-10000.0,0.0001,2]
[421013775,1776927723690,-10000.0,0.0001,2]
[421013777,1776927725105,-10000.0,0.0001,2]
[421013778,1776927726467,-10000.0,0.0001,2]
[421013779,1776927732567,-9200.0,0.0001,2]
[421015064,1776927876154,-1225.0,9.9e-05,2]
[421016344,1776928156084,-5000.0,9.703e-05,2]
[421016345,1776928156107,-150.0,9.95e-05,2]
[421016346,1776928156128,-300.0,9.998e-05,2]
[421016347,1776928156150,-1200.0,9.998e-05,2]
[421016348,1776928156172,-500.0,9.999e-05,2]
[421016349,1776928156192,-288.70994993,9.999e-05,2]
[421016350,1776928156216,-500.0,9.999e-05,2]
[421016351,1776928156238,-500.0,9.999e-05,2]
[421016352,1776928156260,-500.0,9.999e-05,2]
[421016353,1776928156282,-500.0,9.999e-05,2]
[421016354,1776928156305,-500.0,9.999e-05,2]
[421016355,1776928156327,-500.0,9.999e-05,2]
[421016356,1776928156349,-500.0,9.999e-05,2]
[421016357,1776928156371,-500.0,9.999e-05,2]
[421016358,1776928156393,-500.0,9.999e-05,2]
[421016359,1776928156416,-500.0,9.999e-05,2]
[421016360,1776928156441,-403.46292745,9.999e-05,2]
[421016361,1776928156463,-500.0,9.999e-05,2]
[421016362,1776928156486,-500.0,9.999e-05,2]
[421016363,1776928156508,-500.0,9.999e-05,2]
[421016364,1776928156530,-500.0,9.999e-05,2]
[421016365,1776928156552,-500.0,9.999e-05,2]
[421016366,1776928156573,-500.0,9.999e-05,2]
[421016367,1776928156594,-500.0,9.999e-05,2]
[421016368,1776928156615,-500.0,9.999e-05,2]
[421016369,1776928156636,-500.0,9.999e-05,2]
[421016370,1776928156658,-500.0,9.999e-05,2]
[421016371,1776928156681,-500.0,9.999e-05,2]
[421016372,1776928156702,-500.0,9.999e-05,2]
[421016373,1776928156724,-500.0,9.999e-05,2]
[421016374,1776928156746,-500.0,9.999e-05,2]
[421016375,1776928156768,-500.0,9.999e-05,2]
[421016376,1776928156790,-500.0,9.999e-05,2]
[421016377,1776928156812,-500.0,9.999e-05,2]
[421016378,1776928156834,-500.0,9.999e-05,2]
[421016379,1776928156857,-500.0,9.999e-05,2]
[421016380,1776928156878,-500.0,9.999e-05,2]
[421016381,1776928156898,-500.0,9.999e-05,2]
[421016382,1776928156918,-500.0,9.999e-05,2]
[421016383,1776928156938,-500.0,9.999e-05,2]
[421016384,1776928156958,-500.0,9.999e-05,2]
[421016385,1776928156977,-500.0,9.999e-05,2]
[421016386,1776928156996,-500.0,9.999e-05,2]
[421016387,1776928157018,-500.0,9.999e-05,2]
[421016388,1776928157039,-500.0,9.999e-05,2]
[421016389,1776928157060,-500.0,9.999e-05,2]
[421016390,1776928157080,-500.0,9.999e-05,2]
[421016391,1776928157100,-500.0,9.999e-05,2]
[421016392,1776928157121,-500.0,9.999e-05,2]
[421016393,1776928157143,-500.0,9.999e-05,2]
[421016394,1776928157164,-500.0,9.999e-05,2]
[421016395,1776928157184,-500.0,9.999e-05,2]
[421016396,1776928157205,-500.0,9.999e-05,2]
[421016397,1776928157226,-500.0,9.999e-05,2]
[421016398,1776928157246,-500.0,9.999e-05,2]
[421016399,1776928157266,-500.0,9.999e-05,2]
[421016400,1776928157287,-500.0,9.999e-05,2]
[421016401,1776928157308,-612.78970177,9.999e-05,2]
[421016402,1776928157328,-500.0,9.999e-05,2]
[421016403,1776928157348,-500.0,9.999e-05,2]
[421016404,1776928157368,-500.0,9.999e-05,2]
[421016405,1776928157389,-500.0,9.999e-05,2]
[421016406,1776928157410,-500.0,9.999e-05,2]
[421016407,1776928157430,-500.0,9.999e-05,2]
[421016408,1776928157453,-500.0,9.999e-05,2]
[421016409,1776928157476,-468.94532645,9.999e-05,2]
[421016410,1776928157497,-500.0,9.999e-05,2]
[421016411,1776928157517,-500.0,9.999e-05,2]
[421016412,1776928157539,-500.0,9.999e-05,2]
[421016413,1776928157560,-500.0,9.999e-05,2]
[421016414,1776928157580,-511.30280745,9.999e-05,2]
[421016415,1776928157604,-500.0,9.999e-05,2]
[421016416,1776928157629,-500.0,9.999e-05,2]
[421016417,1776928157653,-500.0,9.999e-05,2]
[421016418,1776928157674,-500.0,9.999e-05,2]
[421016419,1776928157695,-500.0,9.999e-05,2]
[421016420,1776928157716,-500.0,9.999e-05,2]
[421016421,1776928157737,-500.0,9.999e-05,2]
[421016422,1776928157758,-500.0,9.999e-05,2]
[421016423,1776928157779,-500.0,9.999e-05,2]
[421016424,1776928157801,-500.0,9.999e-05,2]
[421016425,1776928157825,-500.0,9.999e-05,2]
[421016426,1776928157845,-500.0,9.999e-05,2]
[421016427,1776928157868,-500.0,9.999e-05,2]
[421016428,1776928157891,-500.0,9.999e-05,2]
[421016429,1776928157915,-500.0,9.999e-05,2]
[421016430,1776928157938,-500.0,9.999e-05,2]
[421016431,1776928157959,-500.0,9.999e-05,2]
[421016432,1776928157978,-500.0,9.999e-05,2]
[421016433,1776928157998,-500.0,9.999e-05,2]
[421016434,1776928158018,-500.0,9.999e-05,2]
[421016435,1776928158037,-500.0,9.999e-05,2]
[421016436,1776928158059,-500.0,9.999e-05,2]
[421016437,1776928158081,-500.0,9.999e-05,2]
[421016438,1776928158101,-500.0,9.999e-05,2]
[421016439,1776928158121,-500.0,9.999e-05,2]
[421016440,1776928158141,-500.0,9.999e-05,2]
[421016441,1776928158160,-364.99824194,9.999e-05,2]
[421016442,1776928158180,-500.0,9.999e-05,2]
[421016443,1776928158200,-500.0,9.999e-05,2]
[421016444,1776928158459,-500.0,9.999e-05,2]
[421016445,1776928158480,-500.0,9.999e-05,2]
[421016446,1776928158501,-500.0,9.999e-05,2]
[421016447,1776928158523,-500.0,9.999e-05,2]
[421016448,1776928158544,-500.0,9.999e-05,2]
[421016449,1776928158565,-500.0,9.999e-05,2]
[421016450,1776928158587,-500.0,9.999e-05,2]
[421016451,1776928158609,-500.0,9.999e-05,2]
[421016452,1776928158630,-500.0,9.999e-05,2]
[421016453,1776928158653,-1060.37995935,9.999e-05,2]
[421016454,1776928158675,-597.38209495,9.999e-05,2]
[421016455,1776928158701,-1060.37995935,9.999e-05,2]
[421016456,1776928158725,-1060.37995935,9.999e-05,2]
[421016457,1776928158748,-1060.37995935,9.999e-05,2]
[421016458,1776928158772,-1060.37995935,9.999e-05,2]
[421016459,1776928158797,-1060.37995935,9.999e-05,2]
[421016460,1776928158820,-1060.37995935,9.999e-05,2]
[421016461,1776928158843,-1060.37995935,9.999e-05,2]
[421016462,1776928158869,-1060.37995935,9.999e-05,2]
[421016463,1776928158891,-1060.37995935,9.999e-05,2]
[421016464,1776928158917,-1060.37995935,9.999e-05,2]
[421016465,1776928158941,-1060.37995935,9.999e-05,2]
[421016466,1776928158964,-1060.37995935,9.999e-05,2]
[421016467,1776928158987,-1060.37995935,9.999e-05,2]
[421016468,1776928159013,-1060.37995935,9.999e-05,2]
[421016469,1776928159038,-1060.37995935,9.999e-05,2]
[421016470,1776928159062,-1060.37995935,9.999e-05,2]
[421016471,1776928159086,-1060.37995935,9.999e-05,2]
[421016472,1776928159111,-1060.37995935,9.999e-05,2]
[421016473,1776928159135,-1060.37995935,9.999e-05,2]
[421016474,1776928159158,-1095.725958,9.999e-05,2]
[421016475,1776928159181,-1095.725958,9.999e-05,2]
[421016476,1776928159206,-1095.725958,9.999e-05,2]
[421016477,1776928159230,-1095.725958,9.999e-05,2]
[421016478,1776928159254,-1095.725958,9.999e-05,2]
[421016479,1776928159277,-1095.725958,9.999e-05,2]
[421016480,1776928159300,-1095.725958,9.999e-05,2]
[421016481,1776928159323,-1095.725958,9.999e-05,2]
[421016482,1776928159347,-1095.725958,9.999e-05,2]
[421016483,1776928159367,-14839.13544027,0.0001,2]
[421016485,1776928164212,519.2,0.00024658,120]
[421016514,1776928232568,-541.90525719,0.0001,2]
[421016520,1776928232622,-21385.72128489,0.0001,2]
[421016527,1776928232677,-438.23496928,0.0001,2]
[421016530,1776928232689,-372.19726721,0.0001,2]
[421016532,1776928232700,-908.06644971,0.0001,2]
[421016633,1776928238913,-15020.41825672,0.0001,2]
[421016710,1776928241374,-4.41109842,0.0001,2]
[421016711,1776928241385,-1236.39766523,0.0001,2]
[421016738,1776928246999,-6274.05968323,0.0001,2]
[421016739,1776928247010,-6292.2066766,0.0001,2]
[421016740,1776928247513,-45957.30885082,0.0001,2]
[421016741,1776928247523,-150.0,0.00010099,2]
[421016742,1776928247532,-300.0,0.00010198,2]
[421016743,1776928247542,-300.0,0.00010198,2]
[421016744,1776928247551,-300.0,0.00010198,2]
[421016745,1776928247560,-300.0,0.00010198,2]
[421016746,1776928247570,-300.0,0.00010198,2]
[421016747,1776928247580,-300.0,0.00010198,2]
[421016748,1776928247590,-300.0,0.00010198,2]
[421016749,1776928247599,-300.0,0.00010198,2]
[421016750,1776928247608,-300.0,0.00010198,2]
[421016751,1776928247619,-300.0,0.00010198,2]
[421016752,1776928247628,-300.0,0.00010198,2]
[421016753,1776928247637,-300.0,0.00010198,2]
[421016754,1776928247648,-300.0,0.00010198,2]
[421016755,1776928247657,-300.0,0.00010198,2]
[421016756,1776928247667,-300.0,0.00010198,2]
[421016757,1776928247677,-600.0,0.00010198,2]
[421016758,1776928247686,-152.0,0.00010305,7]
[421016759,1776928247695,-500.0,0.00010959,2]
[421016760,1776928247704,-240.45938412,0.00010959,2]
[421016761,1776928247713,-720.0,0.00011218,2]
[421016762,1776928247722,-177.0,0.00012099,2]
[421016763,1776928247732,-864.0,0.0001234,2]
[421016764,1776928247741,-2368.3488915,0.000129,2]
[421016765,1776928247750,-2368.34889145,0.000129,2]
[421016766,1776928247760,-392.67618831,0.00013233,14]
[421016767,1776928247770,-1000.0,0.00013573,2]
[421016768,1776928247779,-156.0,0.00013699,2]
[421016769,1776928247788,-1000.0,0.00013699,2]
[421016770,1776928247798,-204.0,0.00014099,2]
[421016771,1776928247807,-1574.65682836,0.00014185,2]
[421019048,1776929235425,-150.6421436,0.00010256,2]
[421019049,1776929235447,-150.0,0.00010391,2]
[421019050,1776929235470,-152.0,0.00011338,7]
[421019051,1776929235493,-177.0,0.00012391,2]
[421019052,1776929235514,-1000.0,0.00013699,2]
[421019053,1776929235536,-204.0,0.00014391,2]
[421019054,1776929235556,-100.54710883,0.0001592,2]
[421019076,1776929345131,-74.31289117,0.0001592,2]
[421019077,1776929345152,-160.4,0.0001592,2]
[421019078,1776929345174,-231.0,0.00016391,2]
[421019079,1776929345195,-549.0,0.00016438,2]
[421019080,1776929383861,156.8915502,0.00010312,2]
[421019188,1776929431179,261.33,0.00016438,2]
[421019200,1776929431929,-160.0,0.00016969,2]
[421019201,1776929431939,-451.47347218,0.00016969,2]
[421019202,1776929431948,-188.44122452,0.00017186,2]
[421019448,1776929438288,-150.0,0.00017077,2]
[421019449,1776929438297,-3000.43889996,0.00017088,2]
[421019450,1776929438307,-111.55877548,0.00017186,2]
[421019451,1776929438316,-300.0,0.00017186,2]
[421019452,1776929438325,-1200.0,0.00017186,2]
[421019453,1776929438335,-45840.108628,0.00017187,2]
[421019454,1776929438346,-2207.57002048,0.00017187,2]
[421019455,1776929438357,-59718.82092245,0.00017187,2]
[421019456,1776929438368,-3768.18521745,0.00017187,2]
[421019457,1776929438379,-588397.07843176,0.00017187,2]
[421019458,1776929438388,-118675.12084974,0.00017188,2]
[421019459,1776929438400,-1948.20539679,0.00017188,2]
[421019464,1776929440536,-7457.91225139,0.00017188,2]
[421019465,1776929440597,-2243.08747746,0.00017188,2]
[421019466,1776929440609,-341.44406342,0.00017188,2]
[421019467,1776929440657,-1612.78977645,0.00017188,2]
[421019511,1776929446144,-454.96465952,0.00017188,2]
[421019514,1776929446156,-10000.0,0.00017188,2]
[421019516,1776929446167,-1475.12710884,0.00017188,2]
[421019518,1776929446177,-18134.76718528,0.00017188,2]
[421019520,1776929446188,-1504.3502,0.00017188,2]
[421019526,1776929446236,-145145.05905943,0.00017188,2]
[421019528,1776929446246,-32123.40903274,0.00017188,2]
[421019530,1776929446255,-504.56538398,0.00017199,2]
[421019532,1776929446264,-338.14972921,0.000172,2]
[421019534,1776929446274,-964.40124596,0.000172,2]
[421019536,1776929446283,-690.77884427,0.000172,2]
[421019538,1776929446292,-2692.63477441,0.000172,2]
[421019540,1776929446301,-3693.56273948,0.000172,2]
[421019542,1776929446311,-2377.78307185,0.000172,2]
[421019544,1776929446320,-1691.70680934,0.000172,2]
[421019546,1776929446329,-1900.80963207,0.000172,2]
[421019548,1776929446339,-845.20866812,0.000172,2]
[421019550,1776929446348,-2095.55781205,0.000172,2]
[421019552,1776929446357,-520.86422569,0.000172,2]
[421019554,1776929446367,-209.094,0.000172,2]
[421019556,1776929446376,-186.89740796,0.000172,2]
[421019558,1776929446385,-518.32156888,0.00017287,2]
[421019560,1776929446394,-500.0,0.00017287,2]
[421019562,1776929446404,-590.34629274,0.00017287,2]
[421019564,1776929446413,-500.0,0.00017287,2]
[421019566,1776929446423,-600.0,0.00017543,2]
[421019568,1776929446432,-645.0,0.00017673,2]
[421019571,1776929446443,-363.831,0.00017673,2]
[421019573,1776929446452,-184.105,0.00017673,2]
[421019575,1776929446461,-537.6845,0.00018101,2]
[421019577,1776929446470,-445.202766,0.00018101,2]
[421019579,1776929446480,-557.5788265,0.00018101,2]
[421019581,1776929446489,-2150.738,0.00018101,2]
[421019583,1776929446499,-557.5788265,0.00018156,2]
[421019585,1776929446509,-578.20924308,0.00018211,2]
[421019587,1776929446518,-599.60298507,0.00018266,2]
[421019588,1776929446527,-621.78829552,0.00018321,2]
[421019589,1776929446537,-227.80993839,0.00018376,2]
[421019590,1776929446547,-150.38016461,0.0001852,2]
[421019591,1776929446556,-150.3801646,0.0001852,2]
[421019592,1776929446565,-461.67526834,0.00018649,2]
[421019593,1776929446575,-2230.315306,0.00018649,2]
[421019594,1776929446585,-1680.0,0.0001886,2]
[421019595,1776929446595,-9000.0,0.00019,2]
[421019596,1776929446605,-9304.0,0.00019,5]
[421019597,1776929446615,-177.0,0.00019077,2]
[421019598,1776929446624,-478.75725327,0.00019197,2]
[421019599,1776929446633,-2312.83697232,0.00019197,2]
[421019600,1776929446643,-720.0,0.00019297,2]
[421019601,1776929446653,-158.0,0.00019397,3]
[421019602,1776929446663,-600.384,0.00019482,2]
[421019603,1776929446673,-623268.54592002,0.000196,2]
[421019604,1776929446682,-3717.3556512,0.0001963,2]
[421019605,1776929446692,-411.64827873,0.00019745,2]
[421019606,1776929446701,-2398.4119403,0.00019745,2]
[421019607,1776929446711,-2485.12320285,0.00019882,2]
[421019608,1776929446721,-315.0,0.0002,2]
[421019609,1776929446730,-180.0,0.0002,2]
[421019610,1776929446740,-305.0,0.0002,2]
[421019611,1776929446750,-605.0,0.0002,2]
[421019612,1776929446759,-334.0,0.0002,2]
[421019613,1776929446769,-1589.0,0.0002,2]
[421019614,1776929446779,-2487.15318209,0.00020293,2]
[421019615,1776929446788,-184.0,0.00020673,2]
[421019616,1776929446799,-201.0,0.0002083,2]
[421019617,1776929446808,-2579.17784983,0.00020841,2]
[421019618,1776929446818,-160.4,0.00020905,7]
[421019619,1776929446828,-760330.35567451,0.00020913,2]
[421019620,1776929446838,-151.0,0.00020913,2]
[421019621,1776929446847,-487.0,0.00020913,2]
[421019622,1776929446857,-487.0,0.00020913,2]
[421019623,1776929446866,-760.56,0.00020913,2]
[421019624,1776929446875,-150.0,0.00020973,2]
[421019625,1776929446885,-150.0,0.00020973,2]
[421019626,1776929446894,-227.12588365,0.00020973,2]
[421019627,1776929446904,-500.0,0.00020973,2]
[421019628,1776929446913,-500.0,0.00020973,2]
[421019630,1776929446923,-250.0,0.00020975,2]
[421019631,1776929446932,-350.0,0.00020978,2]
[421019633,1776929446941,-450.0,0.00020981,2]
[421019635,1776929446951,-300.3371467,0.00020984,2]
[421019637,1776929446960,-150.0,0.00021,2]
[421019640,1776929446969,-386.48,0.00021,2]
[421019642,1776929446979,-151.0,0.00021,7]
[421019644,1776929446988,-315.0,0.00021,2]
[421019646,1776929446997,-180.0,0.00021,2]
[421019648,1776929447007,-305.0,0.00021,2]
[421019650,1776929447016,-605.0,0.00021,2]
[421019652,1776929447025,-334.0,0.00021,2]
[421019654,1776929447034,-1589.0,0.00021,2]
[421019656,1776929447043,-204.0,0.00021077,2]
[421019658,1776929447053,-227.38,0.0002112,5]
[421019660,1776929447062,-864.0,0.00021227,10]
[421019662,1776929447071,-2674.60743027,0.00021389,2]
[421019664,1776929447080,-151.0,0.00021507,7]
[421019666,1776929447090,-250.23959895,0.00021521,2]
[421019668,1776929447099,-1000.0,0.00021521,2]
[421019670,1776929447108,-1000.0,0.00021521,2]
[421019672,1776929447119,-160.39,0.0002156,7]
[421019674,1776929447128,-2028.30570282,0.00021574,2]
[421019676,1776929447137,-151.0,0.00021918,2]
[421019678,1776929447147,-150.0,0.00021918,2]
[421019680,1776929447156,-2773.56790519,0.00021937,2]
[421019682,1776929447166,-4387.37626607,0.0002196,6]
[421019684,1776929447175,-4378.87327734,0.00021968,2]
[421019686,1776929447184,-315.0,0.00022,2]
[421019688,1776929447193,-180.0,0.00022,2]
[421019690,1776929447203,-305.0,0.00022,2]
[421019692,1776929447212,-605.0,0.00022,2]
[421019694,1776929447222,-334.0,0.00022,2]
[421019696,1776929447231,-1589.0,0.00022,2]
[421019698,1776929447240,-1000.0,0.00022,2]
[421019700,1776929447249,-160.0,0.00022007,5]
[421019702,1776929447258,-155.0,0.00022013,2]
[421019704,1776929447267,-151.0,0.00022014,30]
[421019706,1776929447276,-151.0,0.0002205,2]
[421019708,1776929447286,-157.350962,0.0002205,2]
[421019710,1776929447295,-160.0,0.0002205,30]
[421019712,1776929447304,-228.719291,0.0002205,2]
[421019714,1776929447314,-151.0,0.0002205,2]
[421019716,1776929447324,-5000.0,0.0002205,30]
[421019718,1776929447333,-5000.0,0.0002205,30]
[421019720,1776929447343,-5000.0,0.0002205,30]
[421019722,1776929447352,-1841.521922,0.0002205,30]
[421019724,1776929447362,-259.638814,0.0002205,2]
[421019726,1776929447371,-259.638814,0.0002205,2]
[421019728,1776929447380,-259.638814,0.0002205,2]
[421019730,1776929447389,-259.638814,0.0002205,2]
[421019732,1776929447399,-264.883319,0.0002205,2]
[421019734,1776929447409,-2689223.2913,0.0002205,2]
[421019736,1776929447418,-1500.0,0.00022068,2]
[421019738,1776929447428,-1500.0,0.00022068,2]
[421019740,1776929447437,-500.0,0.00022073,2]
[421019742,1776929447447,-500.0,0.00022073,2]
[421019744,1776929447456,-150.0,0.00022073,2]
[421019746,1776929447466,-501.12602489,0.00022073,2]
[421019748,1776929447476,-500.0,0.00022073,2]
[421019750,1776929447485,-500.0,0.00022073,2]
[421019752,1776929447495,-500.0,0.00022073,2]
[421019754,1776929447505,-500.0,0.00022073,2]
[421019756,1776929447514,-159.8009322,0.00022073,2]
[421019758,1776929447524,-500.6111151,0.00022073,2]
[421019760,1776929447533,-500.64190523,0.00022073,2]
[421019762,1776929447542,-617.6966758,0.00022073,2]
[421019764,1776929447552,-500.0,0.00022073,2]
[421019766,1776929447561,-500.15290741,0.00022073,2]
[421019768,1776929447570,-504.47981173,0.00022073,2]
[421019770,1776929447579,-500.0,0.00022073,2]
[421019772,1776929447588,-500.0,0.00022073,2]
[421019774,1776929447598,-500.68887406,0.00022073,2]
[421019776,1776929447607,-500.0,0.00022073,2]
[421019778,1776929447616,-500.0,0.00022073,2]
[421019780,1776929447626,-150.0,0.00022073,2]
[421019782,1776929447635,-500.0,0.00022073,2]
[421019784,1776929447645,-500.0,0.00022073,2]
[421019786,1776929447654,-500.0,0.00022073,2]
[421019788,1776929447663,-500.0,0.00022073,2]
[421019790,1776929447672,-500.30794055,0.00022073,2]
[421019792,1776929447681,-500.59963211,0.00022073,2]
[421019794,1776929447690,-500.0,0.00022073,2]
[421019796,1776929447699,-500.0,0.00022073,2]
[421019798,1776929447710,-500.0,0.00022073,2]
[421019800,1776929447719,-500.0,0.00022073,2]
[421019802,1776929447729,-500.0,0.00022073,2]
[421019805,1776929447738,-500.0,0.00022073,2]
[421019807,1776929447748,-500.99928227,0.00022073,2]
[421019809,1776929447757,-158.37816735,0.00022073,2]
[421019811,1776929447767,-500.0,0.00022073,2]
[421019813,1776929447776,-500.0,0.00022073,2]
[421019815,1776929447785,-500.0,0.00022073,2]
[421019817,1776929447794,-150.0,0.00022073,2]
[421019819,1776929447804,-500.0,0.00022073,2]
[421019821,1776929447813,-500.0,0.00022073,2]
[421019823,1776929447822,-500.0,0.00022073,2]
[421019825,1776929447832,-500.0,0.00022073,2]
[421019827,1776929447841,-500.0,0.00022073,2]
[421019829,1776929447851,-500.0,0.00022073,2]
[421019831,1776929447860,-500.42279896,0.00022073,2]
[421019833,1776929447869,-500.0,0.00022073,2]
[421019835,1776929447878,-500.0,0.00022073,2]
[421019837,1776929447887,-153.24586009,0.00022082,21]
[421019839,1776929447896,-155.0,0.00022151,2]
[421019841,1776929447905,-295.962204,0.00022197,14]
[421019843,1776929447914,-155.0,0.00022288,2]
[421019845,1776929447924,-1500.0,0.00022289,2]
[421019847,1776929447933,-1500.0,0.00022289,2]
[421019849,1776929447942,-1500.0,0.00022289,2]
[421019851,1776929447950,-1500.0,0.00022289,2]
[421019853,1776929447959,-1500.260147,0.00022289,2]
[421019855,1776929447968,-200.0,0.000223,2]
[421019857,1776929447977,-155.0,0.00022426,2]
[421019859,1776929447986,-200.0,0.00022466,2]
[421019861,1776929447995,-1044.09877806,0.000225,2]
[421019863,1776929448004,-2008.8667,0.000225,2]
[421019865,1776929448013,-333.4813,0.000225,2]
[421019867,1776929448022,-476.34,0.000225,2]
[421019869,1776929448031,-2031.27,0.000225,2]
[421019871,1776929448040,-1387.598,0.000225,2]
[421019873,1776929448049,-1387.59,0.000225,2]
[421019875,1776929448058,-1065.846,0.000225,2]
[421019877,1776929448067,-1317.734,0.000225,2]
[421019879,1776929448076,-1317.734,0.000225,2]
[421019881,1776929448086,-1317.73,0.000225,2]
[421019883,1776929448095,-1997.711,0.000225,2]
[421019884,1776929448104,-1997.711,0.000225,2]
[421019886,1776929448113,-1997.71,0.000225,2]
[421019888,1776929448122,-184.55567466,0.000225,2]
[421019891,1776929448134,-321.098,0.000225,2]
[421019893,1776929448143,-1532.1977,0.000225,2]
[421019895,1776929448152,-849.2847,0.000225,2]
[421019897,1776929448161,-1771.5917,0.000225,2]
[421019898,1776929448172,-1573.072,0.000225,2]
[421019901,1776929448182,-414.4972,0.000225,2]
[421019903,1776929448191,-1774.2898,0.000225,2]
[421019904,1776929448201,-1278.629,0.000225,2]
[421019906,1776929448210,-1278.63,0.000225,2]
[421019908,1776929448219,-1573.072,0.000225,2]
[421019910,1776929448229,-1573.07,0.000225,2]
[421019912,1776929448238,-229.594921,0.0002254,14]
[421019914,1776929448247,-155.0,0.00022563,2]
[421019916,1776929448256,-2000.0,0.00022616,2]
[421019918,1776929448266,-2000.0,0.00022616,2]
[421019920,1776929448275,-631.02653211,0.00022621,2]
[421019922,1776929448284,-300.0,0.00022621,2]
[421019924,1776929448294,-1000.56844841,0.00022621,2]
[421019926,1776929448303,-558.29947456,0.00022621,2]
[421019928,1776929448312,-1001.34730147,0.00022621,2]
[421019930,1776929448322,-1001.30220279,0.00022621,2]
[421019933,1776929448331,-1000.0,0.00022621,2]
[421019935,1776929448342,-1002.1040526,0.00022621,2]
[421019937,1776929448353,-1000.99429775,0.00022621,2]
[421019939,1776929448363,-1000.0,0.00022621,2]
[421019941,1776929448372,-1000.79502564,0.00022621,2]
[421019942,1776929448381,-250.0,0.00022621,2]
[421019944,1776929448390,-1001.78346164,0.00022621,2]
[421019947,1776929448400,-1000.0,0.00022621,2]
[421019949,1776929448409,-1000.0,0.00022621,2]
[421019951,1776929448419,-1000.0,0.00022621,2]
[421019953,1776929448428,-1000.0,0.00022621,2]
[421019955,1776929448439,-1000.0,0.00022621,2]
[421019957,1776929448449,-1000.0,0.00022621,2]
[421019959,1776929448460,-1000.0,0.00022621,2]
[421019961,1776929448469,-1000.0,0.00022621,2]
[421019963,1776929448478,-151.0,0.0002265,2]
[421019965,1776929448487,-151.0,0.0002265,2]
[421019967,1776929448496,-259.638814,0.0002265,2]
[421019969,1776929448505,-259.638814,0.0002265,2]
[421019970,1776929448515,-259.638814,0.0002265,2]
[421019972,1776929448524,-259.638814,0.0002265,2]
[421019974,1776929448533,-101272.90951262,0.0002265,7]
[421019976,1776929448575,-1246.62269966,0.0002265,7]
[421019977,1776929448586,-7477.49666069,0.0002265,7]
[421019979,1776929448599,-760.69687761,0.0002265,7]
[421019981,1776929448609,-76342.93069183,0.0002265,7]
[421019983,1776929448621,-7839.58242201,0.0002265,7]
[421020048,1776929450100,-214.90991694,0.0002265,7]
[421020101,1776930355164,-171.92388563,0.00013562,10]
[421020102,1776930355185,-1000.0,0.00013699,2]
[421020103,1776930355207,-150.0,0.00014546,2]
[421020104,1776930355229,-177.0,0.00016546,2]
[421020105,1776930355250,-2150.738,0.00017173,2]
[421020106,1776930355270,-1200.0,0.00017175,2]
[421020107,1776930355290,-1013.72844534,0.00017721,2]
[421020108,1776930355314,-600.0,0.00017879,2]
[421020109,1776930355334,-160.0,0.00017993,2]
[421020110,1776930355355,-204.0,0.00018546,2]
[421020111,1776930355375,-184.0,0.00018653,2]